fUSD/lending_fUSD_20250708
["ID","MTS","AMOUNT","RATE_DAILY","PERIOD"]
[370394878,1751993450596,-1590.58,0.00024657,2]
[370394879,1751993450605,-460.0,0.00024657,2]
[370394880,1751993450614,-460.0,0.00024657,2]
[370394881,1751993450623,-460.0,0.00024657,2]
[370394882,1751993450633,-460.0,0.00024657,2]
[370394883,1751993450642,-460.0,0.00024657,2]
[370394884,1751993450651,-460.0,0.00024657,2]
[370394885,1751993450661,-460.0,0.00024657,2]
[370394886,1751993450670,-460.0,0.00024657,2]
[370394887,1751993450679,-750.09,0.00024657,2]
[370394888,1751993450689,-994.09,0.00024657,2]
[370394889,1751993450698,-460.0,0.00024657,2]
[370394890,1751993450708,-460.0,0.00024657,2]
[370394891,1751993450717,-460.0,0.00024657,2]
[370394892,1751993450726,-460.0,0.00024657,2]
[370394893,1751993450736,-460.0,0.00024657,2]
[370394894,1751993450745,-957.89,0.00024657,2]
[370394895,1751993450755,-460.0,0.00024657,2]
[370394896,1751993450764,-460.0,0.00024657,2]
[370394897,1751993450773,-460.0,0.00024657,2]
[370394898,1751993450783,-2064.03,0.00024657,2]
[370394899,1751993450792,-562.0,0.00024657,2]
[370394900,1751993450801,-460.0,0.00024657,2]
[370394901,1751993450810,-579.45,0.00024657,2]
[370394902,1751993450819,-1629.49,0.00024657,2]
[370394903,1751993450829,-521.71200135,0.00024657,2]
[370394904,1751993450838,-538.79869224,0.00024657,2]
[370394905,1751993450847,-460.0,0.00024657,2]
[370394906,1751993450856,-794.8,0.00024657,2]
[370394907,1751993450865,-460.0,0.00024657,2]
[370394908,1751993450874,-985.69,0.00024657,2]
[370394909,1751993450883,-511.01,0.00024657,2]
[370394910,1751993450892,-460.0,0.00024657,2]
[370394911,1751993450901,-539.37658457,0.00024657,2]
[370394912,1751993450910,-460.0,0.00024657,2]
[370394913,1751993450919,-460.0,0.00024657,2]
[370394914,1751993450928,-460.0,0.00024657,2]
[370394915,1751993450937,-460.0,0.00024657,2]
[370394916,1751993450946,-727.13,0.00024657,2]
[370394917,1751993450955,-460.0,0.00024657,2]
[370394918,1751993450965,-840.38,0.00024657,2]
[370394919,1751993450975,-2157.11,0.00024657,2]
[370394920,1751993450984,-460.0,0.00024657,2]
[370394921,1751993450993,-197.83518403,0.00024657,2]
[370394922,1751993451002,-764.94,0.00024657,2]
[370394923,1751993451012,-846.48,0.00024657,2]
[370394924,1751993451021,-748.73,0.00024657,2]
[370394925,1751993451030,-460.0,0.00024657,2]
[370394926,1751993451040,-460.0,0.00024657,2]
[370394927,1751993451050,-460.0,0.00024657,2]
[370394928,1751993451059,-460.0,0.00024657,2]
[370394929,1751993451069,-460.0,0.00024657,2]
[370394930,1751993451078,-645.01,0.00024657,2]
[370394931,1751993451088,-1297.03,0.00024657,2]
[370394932,1751993451097,-1001.04,0.00024657,2]
[370394933,1751993451107,-1410.38,0.00024657,2]
[370394934,1751993451117,-460.0,0.00024657,2]
[370394935,1751993451127,-644.18,0.00024657,2]
[370394936,1751993451136,-1424.48,0.00024657,2]
[370394937,1751993451145,-460.0,0.00024657,2]
[370394938,1751993451155,-2529.13,0.00024657,2]
[370394939,1751993451164,-460.0,0.00024657,2]
[370394940,1751993451173,-460.0,0.00024657,2]
[370394941,1751993451186,-1384.29,0.00024657,2]
[370394942,1751993451195,-460.0,0.00024657,2]
[370394943,1751993451204,-460.0,0.00024657,2]
[370394944,1751993451214,-590.96,0.00024657,2]
[370394945,1751993451225,-460.0,0.00024657,2]
[370394946,1751993451234,-460.0,0.00024657,2]
[370394947,1751993451243,-460.0,0.00024657,2]
[370394948,1751993451252,-460.0,0.00024657,2]
[370394949,1751993451262,-638.72,0.00024657,2]
[370394950,1751993451271,-460.0,0.00024657,2]
[370394951,1751993451281,-460.0,0.00024657,2]
[370394952,1751993451290,-465.44,0.00024657,2]
[370394953,1751993451300,-460.0,0.00024657,2]
[370394954,1751993451310,-2760.74,0.00024657,2]
[370394955,1751993451320,-634.58,0.00024657,2]
[370394956,1751993451330,-460.0,0.00024657,2]
[370394957,1751993451339,-153.561335,0.00024657,2]
[370394958,1751993451349,-225.64,0.00024657,2]
[370394959,1751993451359,-159.629538,0.00024657,2]
[370394960,1751993451368,-479.33,0.00024657,2]
[370394961,1751993451378,-460.0,0.00024657,2]
[370394962,1751993451387,-479.11,0.00024657,2]
[370394963,1751993451396,-460.0,0.00024657,2]
[370394964,1751993451407,-460.0,0.00024657,2]
[370394965,1751993451417,-1102.06,0.00024657,2]
[370394966,1751993451426,-1497.07,0.00024657,2]
[370394967,1751993451435,-460.0,0.00024657,2]
[370394968,1751993451444,-460.0,0.00024657,2]
[370394969,1751993451454,-460.0,0.00024657,2]
[370394970,1751993451464,-633.28,0.00024657,2]
[370394971,1751993451475,-460.0,0.00024657,2]
[370394972,1751993451484,-460.0,0.00024657,2]
[370394973,1751993451493,-460.0,0.00024657,2]
[370394974,1751993451502,-460.0,0.00024657,2]
[370394975,1751993451511,-887.19,0.00024657,2]
[370394976,1751993451520,-460.0,0.00024657,2]
[370394977,1751993451529,-460.0,0.00024657,2]
[370394978,1751993451539,-460.0,0.00024657,2]
[370394979,1751993451548,-844.39,0.00024657,2]
[370394980,1751993451557,-460.0,0.00024657,2]
[370394981,1751993451567,-460.0,0.00024657,2]
[370394982,1751993451577,-460.0,0.00024657,2]
[370394983,1751993451589,-460.0,0.00024657,2]
[370394984,1751993451600,-460.0,0.00024657,2]
[370394985,1751993451609,-460.0,0.00024657,2]
[370394986,1751993451618,-1344.78,0.00024657,2]
[370394987,1751993451627,-460.0,0.00024657,2]
[370394988,1751993451636,-1733.3,0.00024657,2]
[370394989,1751993451646,-460.0,0.00024657,2]
[370394990,1751993451655,-558.11,0.00024657,2]
[370394991,1751993451664,-1013.24,0.00024657,2]
[370394992,1751993451673,-500.0,0.00024657,2]
[370394993,1751993451682,-460.0,0.00024657,2]
[370394994,1751993451692,-657.71,0.00024657,2]
[370394995,1751993451701,-460.0,0.00024657,2]
[370394996,1751993451710,-601.97,0.00024657,2]
[370394997,1751993451721,-461.69343051,0.00024657,2]
[370394998,1751993451731,-500.0,0.00024657,2]
[370394999,1751993451741,-460.0,0.00024657,2]
[370395000,1751993451753,-460.0,0.00024657,2]
[370395001,1751993451764,-1830.22,0.00024657,2]
[370395002,1751993451773,-460.0,0.00024657,2]
[370395003,1751993451784,-731.9,0.00024657,2]
[370395004,1751993451795,-473.53,0.00024657,2]
[370395005,1751993451805,-1477.14,0.00024657,2]
[370395006,1751993451814,-560.45,0.00024657,2]
[370395007,1751993451824,-460.0,0.00024657,2]
[370395008,1751993451833,-460.0,0.00024657,2]
[370395009,1751993451843,-2312.35,0.00024657,2]
[370395010,1751993451851,-460.0,0.00024657,2]
[370395011,1751993451860,-578.9,0.00024657,2]
[370395012,1751993451870,-761.34,0.00024657,2]
[370395013,1751993451879,-654.78,0.00024657,2]
[370395014,1751993451888,-547.28,0.00024657,2]
[370395015,1751993451897,-460.0,0.00024657,2]
[370395016,1751993451907,-858.14,0.00024657,2]
[370395017,1751993451917,-460.0,0.00024657,2]
[370395018,1751993451926,-642.11,0.00024657,2]
[370395019,1751993451935,-460.0,0.00024657,2]
[370395020,1751993451944,-492.27,0.00024657,2]
[370395021,1751993451953,-460.0,0.00024657,2]
[370395022,1751993451962,-765.47,0.00024657,2]
[370395023,1751993451972,-460.0,0.00024657,2]
[370395024,1751993451981,-460.0,0.00024657,2]
[370395025,1751993451990,-460.0,0.00024657,2]
[370395026,1751993451999,-500.0,0.00024657,2]
[370395027,1751993452008,-500.0,0.00024657,2]
[370395028,1751993452017,-500.0,0.00024657,2]
[370395029,1751993452027,-460.0,0.00024657,2]
[370395030,1751993452037,-500.0,0.00024657,2]
[370395031,1751993452046,-500.0,0.00024657,2]
[370395032,1751993452056,-500.0,0.00024657,2]
[370395033,1751993452065,-500.0,0.00024657,2]
[370395034,1751993452074,-500.0,0.00024657,2]
[370395035,1751993452083,-500.0,0.00024657,2]
[370395036,1751993452093,-460.0,0.00024657,2]
[370395037,1751993452102,-500.0,0.00024657,2]
[370395038,1751993452111,-500.0,0.00024657,2]
[370395039,1751993452120,-167.73813556,0.00024657,2]
[370395040,1751993452129,-227.54701653,0.00024657,2]
[370395041,1751993452138,-563.81,0.00024657,2]
[370395042,1751993452147,-800.16,0.00024657,2]
[370395043,1751993452156,-460.0,0.00024657,2]
[370395044,1751993452165,-748.66,0.00024657,2]
[370395045,1751993452175,-1552.5,0.00024657,2]
[370395046,1751993452187,-460.0,0.00024657,2]
[370395047,1751993452197,-1456.05,0.00024657,2]
[370395048,1751993452206,-1148.63,0.00024657,2]
[370395049,1751993452215,-587.72669219,0.00024657,2]
[370395050,1751993452225,-460.0,0.00024657,2]
[370395051,1751993452234,-460.0,0.00024657,2]
[370395052,1751993452243,-140.52009769,0.00024657,2]
[370395053,1751993455328,-260.87249779,0.00022076,2]
[370395054,1751993455339,-199.76543035,0.00022485,2]
[370395055,1751993455348,-257.90557557,0.00022659,2]
[370395056,1751993455358,-500.0,0.00022659,2]
[370395057,1751993455367,-250.0,0.00022659,2]
[370395058,1751993455376,-454.51113529,0.00024401,2]
[370395059,1751993455438,-145.48886471,0.00024401,2]
[370395060,1751993455447,-600.0,0.00024401,2]
[370395061,1751993455456,-600.0,0.00024401,2]
[370395062,1751993455465,-600.0,0.00024401,2]
[370395063,1751993455474,-600.0,0.00024401,2]
[370395064,1751993455484,-600.0,0.00024501,2]
[370395065,1751993455494,-600.0,0.00024501,2]
[370395066,1751993455505,-319.47990231,0.00024657,2]
[370395067,1751993455515,-764.98,0.00024657,2]
[370395068,1751993455524,-771.47,0.00024657,2]
[370395069,1751993455535,-460.0,0.00024657,2]
[370395070,1751993455546,-717.82,0.00024657,2]
[370395071,1751993455556,-1482.54,0.00024657,2]
[370395072,1751993455566,-460.0,0.00024657,2]
[370395073,1751993455575,-460.0,0.00024657,2]
[370395074,1751993455584,-460.0,0.00024657,2]
[370395075,1751993455593,-460.0,0.00024657,2]
[370395076,1751993455602,-460.0,0.00024657,2]
[370395077,1751993455611,-479.58,0.00024657,2]
[370395078,1751993455620,-460.0,0.00024657,2]
[370395079,1751993455629,-460.0,0.00024657,2]
[370395080,1751993455638,-38.54093902,0.00024657,2]
[370395081,1751993455711,-421.45906098,0.00024657,2]
[370395082,1751993455721,-460.0,0.00024657,2]
[370395083,1751993455731,-510.68,0.00024657,2]
[370395084,1751993455741,-767.77213902,0.00024657,2]
[370395086,1751993460431,1444.0,0.00029041,120]
[370395089,1751993520216,1130.41643933,0.00030137,120]
[370395093,1751993578969,151.0,0.00029,120]
[370395101,1751993711270,158.18,0.00013699,2]
[370395102,1751993712097,460.0,0.00027397,120]
[370395104,1751993712370,460.0,0.00027397,120]
[370395105,1751993712673,460.0,0.00027397,120]
[370395106,1751993712973,460.0,0.00027397,120]
[370395107,1751993713146,210.97243476,0.00027397,120]
[370395119,1751993841796,500.0,0.00030136,120]
[370395124,1751993862122,500.0,0.00030136,120]
[370395129,1751993894231,800.0,0.0002411,120]
[370395130,1751993895472,190.8,0.00025024,120]
[370395131,1751993895758,190.8,0.00027805,120]
[370395134,1751993932938,1040.0,0.0002411,120]
[370395144,1751994243770,420.48738559,0.00029041,120]
[370395149,1751994326302,600.0,0.0003013,120]
[370395162,1751994632353,-181.515989,0.0001999,2]
[370395179,1751994632867,-174.61919141,0.0001999,2]
[370395181,1751994632877,-120.60273799,0.00020279,2]
[370395183,1751994632889,-182.75726201,0.00020279,2]
[370395185,1751994632898,-300.89,0.00020279,2]
[370395187,1751994632907,-301.6,0.00020279,2]
[370395189,1751994632916,-346.75273799,0.00021012,5]
[370395192,1751994632928,-1237.801196,0.00021012,5]
[370395197,1751994633000,-415.44606601,0.00021012,5]
[370395198,1751994633009,-183.77,0.00021468,2]
[370395199,1751994633018,-250.0,0.00021491,2]
[370395200,1751994633028,-409.25,0.00021508,2]
[370395201,1751994633037,-1200.0,0.00021563,2]
[370395202,1751994633047,-3544.48,0.00021564,2]
[370395203,1751994633337,-1500.0,0.0002158,2]
[370395204,1751994633354,-200.0,0.00021587,7]
[370395205,1751994633364,-606.17,0.00021587,2]
[370395206,1751994633374,-171.58,0.00021602,2]
[370395207,1751994633383,-3876.02,0.00021613,2]
[370395208,1751994633393,-793.35,0.00021622,2]
[370395209,1751994633403,-207.4,0.00021632,2]
[370395210,1751994633413,-151.0,0.00021632,2]
[370395211,1751994633422,-151.0,0.00021632,2]
[370395212,1751994633432,-151.0,0.00021632,2]
[370395213,1751994633442,-151.0,0.00021632,2]
[370395214,1751994633452,-151.0,0.00021632,2]
[370395215,1751994633461,-151.0,0.00021632,2]
[370395216,1751994633471,-151.0,0.00021632,2]
[370395217,1751994633481,-151.0,0.00021632,2]
[370395218,1751994633490,-151.0,0.00021632,2]
[370395219,1751994633500,-151.0,0.00021632,2]
[370395220,1751994633509,-151.0,0.00021632,2]
[370395221,1751994633519,-151.0,0.00021632,2]
[370395222,1751994633529,-151.0,0.00021632,2]
[370395223,1751994633544,-151.0,0.00021632,2]
[370395224,1751994633554,-1194.0,0.00021634,2]
[370395225,1751994633563,-300.0,0.00021634,2]
[370395226,1751994633574,-6545.51258804,0.00021635,2]
[370395227,1751994633587,-200.0,0.0002164,2]
[370395228,1751994633597,-33773.52,0.00021645,2]
[370395229,1751994633607,-318.04,0.00021688,2]
[370395230,1751994633617,-1305.2233038,0.000219,6]
[370395231,1751994633628,-2500.0,0.00021989,2]
[370395232,1751994633637,-2500.0,0.00021989,2]
[370395233,1751994633648,-2500.0,0.00021989,2]
[370395234,1751994633657,-2000.0,0.00021999,5]
[370395235,1751994633667,-150.0,0.00022,2]
[370395236,1751994633677,-302.23,0.00022025,2]
[370395237,1751994633687,-303.79,0.00022025,2]
[370395238,1751994633698,-610.0,0.00022142,2]
[370395239,1751994633709,-666.0,0.00022142,2]
[370395240,1751994633718,-1305.22330362,0.00022176,6]
[370395241,1751994633728,-151.0,0.0002218,2]
[370395242,1751994633738,-5000.0,0.0002219,2]
[370395243,1751994633748,-194.21,0.00022194,2]
[370395244,1751994633758,-21120.38,0.00022207,2]
[370395245,1751994633768,-23900.0,0.0002221,2]
[370395246,1751994633779,-1879.59,0.00022213,2]
[370395247,1751994633789,-200.0,0.00022213,2]
[370395248,1751994633799,-14700.74,0.00022235,2]
[370395249,1751994633809,-168.37,0.00022239,2]
[370395250,1751994633819,-199.15,0.00022239,2]
[370395251,1751994633828,-168.65,0.00022239,2]
[370395252,1751994633838,-190.8,0.00022244,2]
[370395253,1751994633848,-150.0,0.00022414,2]
[370395254,1751994633858,-150.0,0.00022414,2]
[370395255,1751994633868,-150.0,0.00022414,2]
[370395256,1751994633878,-150.37,0.00022447,2]
[370395257,1751994633888,-1305.22330362,0.00022452,7]
[370395258,1751994633898,-150.0,0.0002247,2]
[370395259,1751994633908,-157.44,0.00022555,2]
[370395260,1751994633918,-1000.0,0.0002256,2]
[370395261,1751994633927,-157.44,0.00022571,2]
[370395262,1751994633937,-157.44,0.00022588,2]
[370395263,1751994633947,-157.44,0.00022604,2]
[370395264,1751994633957,-157.44,0.0002262,2]
[370395265,1751994633967,-157.44,0.00022636,2]
[370395266,1751994633980,-157.44,0.00022652,2]
[370395267,1751994633990,-157.44,0.00022668,2]
[370395268,1751994633999,-157.44,0.00022684,2]
[370395269,1751994634009,-157.44,0.000227,2]
[370395270,1751994634019,-157.44,0.00022716,2]
[370395271,1751994634030,-1305.22330362,0.00022728,7]
[370395272,1751994634040,-151.0,0.00022728,2]
[370395273,1751994634051,-157.44,0.00022733,2]
[370395274,1751994634061,-157.44,0.00022749,2]
[370395275,1751994634071,-157.44,0.00022765,2]
[370395276,1751994634081,-157.44,0.00022781,2]
[370395277,1751994634091,-200.0,0.000228,2]
[370395278,1751994634100,-166.76489018,0.00022901,2]
[370395279,1751994634110,-150.0,0.0002294,2]
[370395280,1751994634119,-23127.19563017,0.00023,2]
[370395281,1751994634128,-157.0,0.00023,7]
[370395282,1751994634137,-215.0738,0.00023001,2]
[370395283,1751994634147,-1305.22330362,0.00023003,8]
[370395284,1751994634157,-4849.91,0.00023026,2]
[370395285,1751994634166,-651.0331858,0.000232,2]
[370395286,1751994634177,-150.37,0.00023207,2]
[370395287,1751994634187,-177.3,0.00023225,2]
[370395288,1751994634196,-500.0,0.00023249,2]
[370395289,1751994634205,-151.0,0.00023276,2]
[370395290,1751994634216,-314.52,0.00023277,3]
[370395291,1751994634226,-1305.22330362,0.00023279,8]
[370395292,1751994634236,-7073.44,0.00023287,2]
[370395293,1751994634246,-545.97679338,0.000233,2]
[370395294,1751994634255,-594.73,0.00023328,2]
[370395295,1751994634264,-500.0,0.00023366,2]
[370395296,1751994634274,-651.03318572,0.00023381,2]
[370395297,1751994634283,-39438.06388378,0.000234,7]
[370395298,1751994634296,-4367.6,0.000234,7]
[370395299,1751994634348,-280.46411289,0.000234,7]
[370395300,1751994634367,-35913.87200333,0.000234,7]
[370395301,1751994634377,-837.09214054,0.000234,7]
[370395302,1751994634387,-210.34477682,0.000234,7]
[370395303,1751994634396,-150.0,0.0002341,2]
[370395304,1751994634406,-812.39,0.0002346,2]
[370395305,1751994634416,-812.39,0.0002346,2]
[370395306,1751994634427,-463.56,0.00023461,2]
[370395307,1751994634436,-463.56,0.00023461,2]
[370395308,1751994634446,-463.56,0.00023461,2]
[370395309,1751994634456,-500.0,0.00023482,2]
[370395310,1751994634466,-189.0,0.00023552,2]
[370395311,1751994634475,-1305.22330362,0.00023555,9]
[370395312,1751994634485,-651.03318572,0.00023562,2]
[370395313,1751994634495,-500.0,0.00023599,2]
[370395314,1751994634505,-500.0,0.00023715,2]
[370395315,1751994634515,-166.76489018,0.00023729,2]
[370395316,1751994634525,-812.39,0.00023741,2]
[370395317,1751994634539,-651.03318572,0.00023744,2]
[370395318,1751994634548,-151.0,0.00023824,2]
[370395319,1751994634558,-1305.22330362,0.00023831,10]
[370395320,1751994634568,-500.0,0.00023832,2]
[370395321,1751994634580,-508.66,0.00023836,2]
[370395322,1751994634590,-812.39,0.00023841,2]
[370395323,1751994634601,-463.56,0.00023841,2]
[370395324,1751994634611,-150.0,0.0002388,2]
[370395325,1751994634621,-651.03318572,0.00023925,2]
[370395326,1751994634631,-1481.07,0.00023948,2]
[370395327,1751994634641,-500.0,0.00023948,2]
[370395328,1751994634651,-150.37,0.00023966,2]
[370395329,1751994634660,-500.0,0.00024065,2]
[370395330,1751994634669,-200.0,0.000241,7]
[370395331,1751994634679,-651.03318572,0.00024106,2]
[370395332,1751994634689,-1305.22330362,0.00024107,10]
[370395333,1751994634698,-644.237646,0.00024163,4]
[370395334,1751994634708,-500.0,0.00024181,2]
[370395335,1751994634717,-168.0,0.00024218,2]
[370395336,1751994634728,-651.03318572,0.00024287,2]
[370395337,1751994634739,-500.0,0.00024298,2]
[370395338,1751994634749,-400.0,0.000243,8]
[370395339,1751994634759,-1485.02343259,0.0002432,2]
[370395340,1751994634768,-210.34477682,0.00024331,2]
[370395341,1751994634777,-160.0,0.00024331,2]
[370395342,1751994634786,-837.09214054,0.00024331,2]
[370395343,1751994634796,-150.0,0.0002435,2]
[370395344,1751994634806,-223.0315306,0.0002437,2]
[370395345,1751994634816,-151.0,0.00024372,2]
[370395346,1751994634825,-1485.02343259,0.00024377,2]
[370395347,1751994634835,-1305.22330362,0.00024383,11]
[370395348,1751994634844,-900.0,0.000244,8]
[370395349,1751994634854,-86413.52871014,0.000244,7]
[370395350,1751994634863,-446.85854,0.0002441,2]
[370395351,1751994634873,-500.0,0.00024414,2]
[370395352,1751994634884,-463.56,0.0002442,2]
[370395353,1751994634895,-183.9,0.0002442,2]
[370395354,1751994634904,-1485.02343259,0.00024434,2]
[370395355,1751994634915,-163.21371983,0.00024457,2]
[370395356,1751994634924,-200.0,0.0002446,2]
[370395357,1751994634933,-651.03318572,0.00024469,2]
[370395358,1751994634944,-1485.02343259,0.0002449,2]
[370395359,1751994634954,-1400.0,0.000245,8]
[370395360,1751994634964,-500.0,0.00024531,2]
[370395361,1751994634973,-1485.02343259,0.00024547,2]
[370395362,1751994634982,-5000.0,0.00024557,2]
[370395363,1751994634992,-8141.4669,0.00024557,3]
[370395364,1751994635001,-500.0,0.00024557,2]
[370395365,1751994635011,-319.5326,0.00024557,2]
[370395366,1751994635021,-666.6144963,0.00024557,2]
[370395367,1751994635030,-166.76489018,0.00024557,2]
[370395368,1751994635040,-442.44550027,0.00024583,2]
[370395369,1751994635049,-1123.0,0.00024584,2]
[370395370,1751994635058,-1900.0,0.000246,8]
[370395371,1751994635067,-1485.02343259,0.00024604,2]
[370395372,1751994635077,-327.05762114,0.00024647,2]
[370395373,1751994635086,-153.97,0.00024647,2]
[370395374,1751994635096,-500.0,0.00024648,2]
[370395375,1751994635106,-651.03318572,0.0002465,2]
[370395376,1751994635116,-442.44550027,0.0002465,2]
[370395377,1751994635125,-13985.5459297,0.00024653,2]
[370395378,1751994635134,-126330.3714329,0.00024653,2]
[370395379,1751994635144,-396.8525572,0.00024653,2]
[370395380,1751994635154,-11631.0321039,0.00024653,2]
[370395381,1751994635163,-168549.8708075,0.00024653,2]
[370395382,1751994635173,-1399.6732788,0.00024653,2]
[370395383,1751994635182,-388.5705435,0.00024653,2]
[370395384,1751994635191,-7465.8955658,0.00024653,2]
[370395385,1751994635201,-336361.50573245,0.00024657,2]
[370395386,1751994635210,-903.37,0.00024657,2]
[370395387,1751994635220,-865.73,0.00024657,2]
[370395388,1751994635230,-909.44,0.00024657,2]
[370395389,1751994635239,-500.0,0.00024657,2]
[370395390,1751994635249,-500.0,0.00024657,2]
[370395391,1751994635258,-500.0,0.00024657,2]
[370395392,1751994635267,-329.25193893,0.00024657,2]
[370395393,1751994635277,-460.0,0.00024657,2]
[370395394,1751994635286,-460.0,0.00024657,2]
[370395395,1751994635295,-460.0,0.00024657,2]
[370395396,1751994635304,-518.31,0.00024657,2]
[370395397,1751994635315,-460.0,0.00024657,2]
[370395398,1751994635324,-500.0,0.00024657,2]
[370395399,1751994635334,-460.0,0.00024657,2]
[370395400,1751994635343,-460.0,0.00024657,2]
[370395401,1751994635353,-460.0,0.00024657,2]
[370395402,1751994635363,-460.0,0.00024657,2]
[370395403,1751994635372,-460.0,0.00024657,2]
[370395404,1751994635382,-476.47,0.00024657,2]
[370395405,1751994635392,-460.0,0.00024657,2]
[370395406,1751994635401,-460.0,0.00024657,2]
[370395407,1751994635411,-460.0,0.00024657,2]
[370395408,1751994635421,-460.0,0.00024657,2]
[370395409,1751994635431,-460.0,0.00024657,2]
[370395410,1751994635441,-460.0,0.00024657,2]
[370395411,1751994635452,-460.0,0.00024657,2]
[370395412,1751994635461,-460.0,0.00024657,2]
[370395413,1751994635471,-460.0,0.00024657,2]
[370395414,1751994635480,-601.9,0.00024657,2]
[370395415,1751994635489,-460.0,0.00024657,2]
[370395416,1751994635499,-260.87249779,0.00024657,2]
[370395417,1751994635508,-460.0,0.00024657,2]
[370395418,1751994635518,-460.0,0.00024657,2]
[370395419,1751994635528,-460.0,0.00024657,2]
[370395420,1751994635540,-460.0,0.00024657,2]
[370395421,1751994635550,-460.0,0.00024657,2]
[370395422,1751994635559,-460.0,0.00024657,2]
[370395423,1751994635570,-536.62227043,0.00024657,2]
[370395424,1751994635580,-513.73,0.00024657,2]
[370395425,1751994635589,-460.0,0.00024657,2]
[370395426,1751994635599,-460.0,0.00024657,2]
[370395427,1751994635609,-460.0,0.00024657,2]
[370395428,1751994635620,-460.0,0.00024657,2]
[370395429,1751994635630,-460.0,0.00024657,2]
[370395430,1751994635640,-165.977922,0.00024657,2]
[370395431,1751994635649,-304.56065599,0.00024657,2]
[370395432,1751994635659,-159.79479,0.00024657,2]
[370395433,1751994635668,-165.977922,0.00024657,2]
[370395434,1751994635676,-460.0,0.00024657,2]
[370395435,1751994635686,-460.0,0.00024657,2]
[370395436,1751994635695,-194.158258,0.00024657,2]
[370395437,1751994635705,-460.0,0.00024657,2]
[370395438,1751994635714,-460.0,0.00024657,2]
[370395439,1751994635724,-460.0,0.00024657,2]
[370395440,1751994635733,-460.0,0.00024657,2]
[370395441,1751994635743,-460.0,0.00024657,2]
[370395442,1751994635752,-464.0,0.00024657,2]
[370395443,1751994635761,-270.0,0.00024657,2]
[370395444,1751994635771,-460.0,0.00024657,2]
[370395445,1751994635780,-460.0,0.00024657,2]
[370395446,1751994635790,-460.0,0.00024657,2]
[370395447,1751994635799,-460.0,0.00024657,2]
[370395448,1751994635809,-922.59,0.00024657,2]
[370395449,1751994635818,-460.0,0.00024657,2]
[370395450,1751994635827,-460.0,0.00024657,2]
[370395451,1751994635836,-460.0,0.00024657,2]
[370395452,1751994635845,-460.0,0.00024657,2]
[370395453,1751994635854,-460.0,0.00024657,2]
[370395454,1751994635864,-490.0,0.00024657,2]
[370395455,1751994635873,-460.0,0.00024657,2]
[370395456,1751994635883,-460.0,0.00024657,2]
[370395457,1751994635893,-460.0,0.00024657,2]
[370395458,1751994635903,-297.10121885,0.00024657,2]
[370395459,1751994635913,-460.0,0.00024657,2]
[370395460,1751994635922,-460.0,0.00024657,2]
[370395461,1751994635931,-460.0,0.00024657,2]
[370395462,1751994635940,-460.0,0.00024657,2]
[370395463,1751994635950,-460.0,0.00024657,2]
[370395464,1751994635959,-460.0,0.00024657,2]